bitfinex/quotes_SOLUSD_20240813
["timestamp","ask_amount","ask_price","bid_price","bid_amount"]
[1723554987264,6.8446,146.1,146.05,0.25098]
[1723554987458,6.8458,146.08,146.04,17.1178]
[1723554987661,6.8452,146.09,146.05,45.0]
[1723554988090,39.15,146.1,146.04,23.9651]
[1723554988091,6.8456,146.08,146.04,23.9651]
[1723554988292,39.15,146.1,145.99,15.1529]
[1723554988470,21.71187953,146.14,146.01,6.8487]
[1723554988471,39.15,146.08,146.01,6.8487]
[1723554988662,6.8468,146.06,146.01,6.8487]
[1723554988865,6.847,146.05,146.0,23.9719]
[1723554989085,1.71204866,146.06,146.0,17.1228]
[1723554989296,6.8482,146.03,145.98,7.6686459]
[1723554989513,37.71575044,146.07,145.98,7.6686459]
[1723554989514,6.8492,146.01,145.98,0.8187459]
[1723554990010,6.8493,146.0,145.98,0.8187459]
[1723554990310,6.848,146.03,145.98,17.9439459]
[1723554990493,6.8484,146.02,145.98,17.9439459]
[1723554990675,39.15,146.04,146.0,6.8489]
[1723554990870,6.8472,146.05,146.0,6.8491]
[1723554991180,23.4186,146.08,146.0,6.8491]
[1723554991181,20.0,146.07,146.0,17.1229]
[1723554991995,6.8466,146.06,146.01,51.8483]
[1723554992197,6.8466,146.06,146.01,45.0]
[1723554992381,6.8466,146.06,146.01,51.8487]
[1723554992694,6.8471,146.05,146.01,45.0]
[1723554993497,45.454,146.08,146.02,6.8483]
[1723554993696,6.304,146.08,146.03,45.12549]
[1723554993914,39.15,146.1,146.04,6.8469]
[1723554994202,39.15,146.1,146.05,45.0]
[1723554994711,20.0,146.09,146.05,45.0]
[1723554995018,20.0,146.09,146.03,6.97319]
[1723554995323,20.0,146.09,146.0,0.12549]
[1723554995324,39.15,146.08,146.01,6.8488]
[1723554995482,6.8466,146.06,146.02,45.0]
[1723554995681,6.8461,146.07,146.02,51.8481]
[1723554996616,6.8466,146.06,146.02,45.0]
[1723554996781,1.71209309,146.07,146.02,45.0]
[1723554996990,1.71209309,146.07,145.98,17.9436459]
[1723554996991,40.86213541,146.06,145.98,17.9436459]
[1723554997488,6.8475,146.04,145.99,6.8494]
[1723554997688,39.15,146.04,145.98,0.8187459]
[1723554997927,6.8493,146.0,145.98,0.8187459]
[1723554998130,39.15,146.02,145.98,0.8187459]
[1723554998606,6.8489,146.01,145.98,0.8187459]
[1723554998917,6.8493,146.0,145.98,0.8187459]
[1723554999094,6.8488,146.01,145.98,0.8187459]
[1723554999289,39.15,146.04,145.98,7.6686459]
[1723554999493,39.15,146.04,145.99,6.8494]
[1723554999726,6.8485,146.02,145.98,7.6688459]
[1723554999900,6.8481,146.03,145.98,0.8187459]
[1723555000092,39.15,146.04,146.0,6.8492]
[1723555000294,55.4059,146.09,146.03,6.8474]
[1723555000518,6.8463,146.07,146.02,6.8482]
[1723555000722,55.4059,146.09,146.03,45.0]
[1723555000893,55.4059,146.09,146.03,62.1193]
[1723555001085,6.8463,146.07,146.03,62.1193]
[1723555001496,6.8466,146.06,146.03,62.1193]
[1723555001712,6.8461,146.07,146.03,62.1193]
[1723555001915,6.8461,146.07,146.03,68.967]
[1723555002120,6.8456,146.08,146.03,68.967]
[1723555002314,45.5516,146.11,146.05,17.1166]
[1723555002617,45.5516,146.11,146.03,45.0]
[1723555002789,45.5516,146.11,146.03,51.8478]
[1723555002790,6.8461,146.07,146.03,51.8478]
[1723555002992,6.8452,146.09,146.05,6.8469]
[1723555003202,6.8446,146.1,146.05,6.8469]
[1723555003424,6.8446,146.1,146.06,51.8464]
[1723555003600,6.8446,146.1,146.06,45.0]
[1723555003799,6.8446,146.1,146.05,6.8468]
[1723555003800,6.846,146.07,146.02,0.12549]
[1723555004001,39.15,146.09,146.04,17.1185]
[1723555004222,39.15,146.09,146.05,45.0]
[1723555004424,39.15,146.09,146.03,6.8478]
[1723555004723,45.9952,146.09,146.05,6.8469]
[1723555004901,45.5516,146.11,146.06,17.1157]
[1723555005108,6.4389,146.14,146.08,6.8455]
[1723555005324,6.4389,146.14,146.06,17.1157]
[1723555005325,6.8449,146.1,146.06,17.1157]
[1723555005646,6.8449,146.1,146.07,45.0]
[1723555005927,8.5566196,146.09,146.07,45.0]
[1723555006122,8.5571196,146.08,146.03,17.1189]
[1723555006299,6.8452,146.09,146.04,51.97259]
[1723555006821,8.55736152,146.08,146.04,45.12549]
[1723555006991,1.71179573,146.07,146.04,45.0]
[1723555007195,39.15,146.1,146.03,17.1189]
[1723555007196,45.9947,146.1,146.03,17.1189]
[1723555007396,39.15,146.1,146.05,6.8466]
[1723555007617,8.55714697,146.09,146.04,6.97269]
[1723555007938,6.8454,146.09,146.04,6.97269]
[1723555008098,6.8454,146.09,146.05,6.8469]
[1723555008429,6.8456,146.08,146.04,6.8473]
[1723555008726,6.8456,146.08,146.05,45.0]
[1723555009109,6.8452,146.09,146.05,45.0]
[1723555009304,6.8457,146.08,146.05,45.0]
[1723555010376,45.9937,146.12,146.07,6.8455]
[1723555010542,6.8453,146.09,146.05,62.117]
[1723555010739,6.8456,146.08,146.03,6.8477]
[1723555010976,6.8454,146.09,146.04,6.8473]
[1723555011133,6.8454,146.09,146.04,17.1183]
[1723555011342,1.71180867,146.09,146.04,17.1183]
[1723555011641,39.15,146.1,146.04,17.1183]
[1723555011852,6.8456,146.08,146.04,23.9657]
[1723555012548,6.8452,146.09,146.04,23.9657]
[1723555013887,6.8456,146.08,146.04,23.9657]
[1723555014061,45.9947,146.1,146.04,17.1183]
[1723555014255,45.9947,146.1,146.06,6.8464]
[1723555014458,48.69566951,146.1,146.06,6.8464]
[1723555014774,48.69566951,146.1,146.05,51.8468]
[1723555014962,6.8452,146.09,146.05,51.8468]
[1723555015184,6.8456,146.08,146.05,45.0]
[1723555015358,39.15,146.08,146.01,17.1216]
[1723555015560,6.8475,146.04,145.99,6.8493]
[1723555015772,6.8497,145.99,145.98,0.8187459]
[1723555016709,6.8497,145.99,145.86,50.6731]
[1723555016710,6.852,145.95,145.86,50.6731]
[1723555016984,45.309,145.98,145.86,50.6731]
[1723555016985,67.02237509,145.98,145.9,6.8538]
[1723555017190,6.8526,145.93,145.89,17.1355]
[1723555017397,39.15,145.96,145.89,17.1355]
[1723555017557,26.159,145.98,145.86,50.6739]
[1723555017558,72.1593,145.98,145.93,6.8524]
[1723555017866,6.8515,145.96,145.91,23.9863]
[1723555018192,65.309,145.98,145.91,23.9863]
[1723555018494,6.8508,145.97,145.93,6.8525]
[1723555018671,6.8508,145.97,145.91,17.1332]
[1723555018672,6.8511,145.96,145.91,17.1332]
[1723555018875,52.1596,145.98,145.93,6.8525]
[1723555019412,39.15,146.01,145.94,0.12549]
[1723555019570,29.6273,146.02,145.97,6.8506]
[1723555019959,29.6273,146.02,145.95,17.1287]
[1723555019960,6.8489,146.01,145.96,6.851]
[1723555020159,22.7785,146.02,145.94,0.12549]
[1723555020160,29.6269,146.02,145.94,0.12549]
[1723555020380,45.6976,146.06,145.94,50.36227]
[1723555020575,6.8474,146.04,146.0,6.8489]
[1723555020790,45.6976,146.06,146.0,6.8489]
[1723555020991,45.6976,146.06,145.95,45.12549]
[1723555020992,6.8473,146.05,146.01,45.0]
[1723555021170,6.8474,146.04,146.0,6.8492]
[1723555021385,6.8486,146.02,145.97,6.8503]
[1723555021594,6.8486,146.02,145.98,45.0]
[1723555021771,6.8486,146.02,145.98,51.8501]
[1723555021967,45.6976,146.06,145.98,45.0]
[1723555022170,6.8461,146.07,145.99,0.37647]
[1723555022397,6.8466,146.06,145.99,0.37647]
[1723555022704,39.15,146.08,145.98,45.0]
[1723555022907,39.15,146.08,146.03,6.8477]
[1723555023206,6.8456,146.08,146.04,6.8473]
[1723555023367,6.8456,146.08,146.04,45.0]
[1723555023780,65.11838365,146.1,146.0,17.123]
[1723555024007,6.8469,146.06,146.01,6.8487]
[1723555024202,6.847,146.05,146.02,45.0]
[1723555024504,39.15,146.08,146.02,68.9687]
[1723555024505,6.8464,146.07,146.02,68.9687]
[1723555024702,6.8447,146.1,146.04,17.1182]
[1723555025003,6.8442,146.11,146.07,6.8459]
[1723555025202,6.8438,146.12,146.07,6.8459]
[1723555025375,6.8438,146.12,146.06,17.1158]
[1723555025376,6.8433,146.13,146.08,6.8453]
[1723555026101,6.8435,146.13,146.08,6.8452]
[1723555026304,1.71129388,146.14,146.09,45.0]
[1723555026504,6.8438,146.12,146.07,6.8458]
[1723555026675,6.8438,146.12,146.08,45.0]
[1723555027211,56.2576,146.14,146.06,17.1158]
[1723555027518,6.8442,146.11,146.07,45.0]
[1723555028225,39.15,146.12,146.07,51.8459]
[1723555028401,45.9938,146.12,146.07,51.8459]
[1723555028725,6.8433,146.13,146.08,6.97059]
[1723555028902,6.8433,146.13,146.09,45.0]
[1723555029218,6.8437,146.12,146.09,45.0]
[1723555029430,6.8432,146.13,146.09,6.845]
[1723555029635,6.8431,146.14,146.1,6.8445]
[1723555030419,12.8471,146.15,146.11,45.0]
[1723555030627,6.0047,146.15,146.09,6.8449]
[1723555030831,6.8435,146.13,146.08,23.9585]
[1723555031031,1.7112488,146.12,146.09,45.0]
[1723555031699,8.5552488,146.12,146.09,45.0]
[1723555031898,6.844,146.12,146.09,45.0]
[1723555032098,6.8436,146.13,146.09,45.0]
[1723555033017,6.8433,146.13,146.09,45.0]
[1723555033202,6.8433,146.13,146.09,51.845]
[1723555033397,6.8436,146.12,146.09,45.0]
[1723555033799,6.8431,146.14,146.09,51.845]
[1723555034035,12.8471,146.15,146.1,6.8446]
[1723555034216,6.8428,146.14,146.1,6.8446]
[1723555034615,6.8408,146.19,146.15,6.8421]
[1723555034824,6.8392,146.22,146.16,62.1041]
[1723555035132,6.8392,146.22,146.18,6.8405]
[1723555035310,6.8385,146.23,146.19,51.8403]
[1723555035514,6.4593,146.25,146.21,6.8392]
[1723555035700,6.8374,146.26,146.21,6.8392]
[1723555035898,1.70986389,146.25,146.19,45.0]
[1723555036110,1.70986389,146.25,146.17,23.9438]
[1723555036111,6.8391,146.22,146.18,51.8407]
[1723555036340,6.8395,146.21,146.18,45.0]
[1723555036503,39.15,146.24,146.18,45.0]
[1723555036703,6.8397,146.21,146.18,45.0]
[1723555036917,6.8391,146.22,146.18,45.0]
[1723555037124,39.15,146.24,146.18,51.8408]
[1723555037335,6.8379,146.25,146.19,17.1006]
[1723555037629,6.839,146.22,146.18,45.0]
[1723555037802,6.8404,146.19,146.17,45.0]
[1723555038005,6.8401,146.2,146.17,45.0]
[1723555038406,6.8396,146.21,146.17,45.0]
[1723555038607,6.8401,146.2,146.17,45.0]
[1723555038931,6.8377,146.25,146.21,6.8394]
[1723555039130,6.8369,146.27,146.22,6.8387]
[1723555039299,56.2383,146.3,146.23,51.8382]
[1723555039506,6.8367,146.27,146.23,51.8382]
[1723555039736,6.8372,146.26,146.22,23.9356]
[1723555039904,9.07312215,146.29,146.18,0.12549]
[1723555039905,6.8379,146.25,146.2,6.96519]
[1723555040101,56.2409,146.28,146.21,45.0]
[1723555040325,6.8388,146.23,146.2,45.0]
[1723555040608,6.8372,146.26,146.22,6.8389]
[1723555040804,6.8366,146.27,146.23,51.8385]
[1723555041002,39.15,146.28,146.21,17.0982]
[1723555041003,20.0,146.26,146.21,17.0982]
[1723555041336,6.8381,146.24,146.21,17.0982]
[1723555041522,1.7099725,146.25,146.18,23.9422]
[1723555041733,21.7099725,146.25,146.18,23.9422]
[1723555041915,20.0,146.25,146.19,6.8402]
[1723555042324,39.15,146.24,146.15,17.105]
[1723555042725,39.15,146.24,146.08,2.68449913]
[1723555042726,39.15,146.2,146.12,17.1083]
[1723555042934,6.8408,146.18,146.14,6.8424]
[1723555043108,6.8397,146.21,146.17,6.8413]
[1723555043325,6.8397,146.21,146.08,34.226]
[1723555043326,6.8416,146.17,146.08,34.226]
[1723555044650,6.8416,146.17,146.11,0.25098]
[1723555044850,6.8416,146.17,146.13,6.843]
[1723555045263,6.1377,146.21,146.12,34.218]
[1723555045553,6.8404,146.19,146.15,23.9472]
[1723555045750,6.8409,146.18,146.13,6.843]
[1723555046047,6.1377,146.21,146.09,17.1119]
[1723555046221,39.15,146.18,146.09,17.1119]
[1723555046415,6.8415,146.17,146.13,6.843]
[1723555046646,6.8409,146.18,146.13,6.843]
[1723555047147,6.8424,146.15,146.12,0.12549]
[1723555047360,6.8427,146.14,146.08,17.113]
[1723555047522,6.8427,146.14,146.06,21.6801]
[1723555047523,6.8443,146.11,146.06,21.6801]
[1723555047847,6.8428,146.14,146.06,21.6801]
[1723555048069,39.15,146.18,146.13,6.8431]
[1723555048347,6.8414,146.17,146.13,6.843]
[1723555048554,6.8414,146.17,146.11,17.11]
[1723555048555,59.15,146.2,146.09,6.8447]
[1723555048859,39.15,146.18,146.1,17.1113]
[1723555049026,6.8416,146.17,146.13,6.8431]
[1723555049220,17.102,146.19,146.12,17.1088]
[1723555049416,6.8427,146.14,146.11,0.12549]
[1723555049616,6.8424,146.15,146.11,6.96959]
[1723555049821,6.8416,146.17,146.13,6.8431]
[1723555050422,6.8418,146.16,146.12,7.09458]
[1723555050617,6.8423,146.15,146.13,45.0]
[1723555051219,6.8423,146.15,146.12,45.0]
[1723555051955,6.8432,146.13,146.09,6.8447]
[1723555052144,6.8439,146.12,146.08,23.9583]
[1723555052849,1.71116181,146.11,146.08,23.9583]
[1723555053066,6.8439,146.12,146.08,23.9583]
[1723555053431,45.993,146.14,146.09,6.8449]
[1723555053637,6.843,146.14,146.09,6.8449]
[1723555054331,6.8432,146.13,146.1,45.0]
[1723555054653,6.8429,146.14,146.1,51.8446]
[1723555055036,6.8423,146.15,146.11,6.844]
[1723555055736,6.8416,146.17,146.12,51.8433]
[1723555055942,20.0,146.16,146.12,6.8433]
[1723555056129,6.8415,146.17,146.13,45.0]
[1723555056329,6.8415,146.17,146.13,51.8431]
[1723555056528,39.15,146.18,146.12,17.109]
[1723555056825,6.8432,146.13,146.09,23.9566]
[1723555057063,37.1035,146.17,146.1,6.8445]
[1723555057064,6.8428,146.14,146.1,6.8445]
[1723555057235,6.8428,146.14,146.09,17.1117]
[1723555057236,37.1035,146.17,146.11,45.0]
[1723555057540,6.8426,146.15,146.11,6.8441]
[1723555057736,6.8424,146.15,146.11,6.8441]
[1723555057945,20.0,146.17,146.11,17.1101]
[1723555058139,22.71338862,146.17,146.12,45.0]
[1723555058350,20.0,146.17,146.12,45.0]
[1723555058534,6.8421,146.16,146.12,51.8433]
[1723555060178,26.8415,146.17,146.13,6.8431]
[1723555060366,6.8418,146.16,146.12,51.8435]
[1723555060670,6.8424,146.15,146.12,45.0]
[1723555061844,26.8416,146.17,146.13,6.8431]
[1723555062041,2.69840333,146.19,146.12,45.0]
[1723555062256,6.8408,146.19,146.15,6.8422]
[1723555062474,6.8408,146.18,146.14,6.8425]
[1723555062844,6.8408,146.18,146.15,45.0]
[1723555063043,16.5163,146.2,146.15,45.0]
[1723555063044,6.8414,146.17,146.15,45.0]
[1723555063373,6.8424,146.15,146.11,6.96959]
[1723555063659,6.8424,146.15,146.12,45.12549]
[1723555063867,6.8418,146.16,146.12,51.96899]
[1723555065069,6.8415,146.17,146.13,6.8429]
[1723555065376,16.5163,146.2,146.14,45.0]
[1723555065665,16.5163,146.2,146.12,17.23449]
[1723555065666,39.15,146.19,146.12,17.23449]
[1723555065873,1.71077892,146.18,146.12,0.12549]
[1723555066185,1.71077892,146.18,146.09,17.1117]
[1723555066186,6.8427,146.14,146.1,6.96969]
[1723555066481,6.8427,146.14,146.11,45.0]
[1723555066676,6.8427,146.14,146.09,17.23719]
[1723555066677,6.8433,146.13,146.09,23.9565]
[1723555066879,6.8437,146.12,146.09,17.1117]
[1723555067380,8.55566225,146.11,146.07,6.8458]
[1723555067683,6.8437,146.12,146.08,6.8452]
[1723555068050,39.15,146.15,146.08,17.1137]
[1723555068261,6.8435,146.13,146.09,6.8449]
[1723555068451,6.8437,146.12,146.08,23.959]
[1723555068878,6.8437,146.12,146.09,45.0]
[1723555069759,39.15,146.11,146.02,21.922]
[1723555070067,39.15,146.11,146.05,6.8466]
[1723555070663,39.15,146.11,146.02,21.922]
[1723555070886,61.2913,146.13,146.06,17.1158]
[1723555071081,20.0,146.12,146.06,17.1158]
[1723555071287,20.0,146.12,146.09,6.8449]
[1723555071586,6.363,146.13,146.09,6.8449]
[1723555071758,13.2064,146.13,146.09,6.8449]
[1723555072155,6.363,146.13,146.09,6.8449]
[1723555072372,13.2063,146.13,146.1,45.0]
[1723555072580,6.8436,146.12,146.1,45.0]
[1723555072790,13.2062,146.13,146.09,51.8448]
[1723555073299,13.2062,146.13,146.09,45.0]
[1723555073300,6.8438,146.12,146.09,45.0]
[1723555073492,13.2064,146.13,146.09,51.845]
[1723555073787,13.2064,146.13,146.09,45.0]
[1723555073788,8.55486082,146.12,146.09,45.0]
[1723555074282,6.8437,146.12,146.09,45.0]
[1723555074788,8.55488779,146.12,146.09,45.0]
[1723555075292,1.7112364,146.11,146.05,17.1169]
[1723555075585,6.8454,146.09,146.06,45.0]
[1723555075793,6.8454,146.09,146.05,23.9635]
[1723555075986,6.8447,146.1,146.06,6.8464]
[1723555077284,45.513,146.13,146.07,45.0]
[1723555077493,45.513,146.13,146.05,17.1169]
[1723555077663,6.8447,146.1,146.06,51.8462]
[1723555078708,6.8451,146.09,146.06,45.0]
[1723555079368,6.8447,146.1,146.06,51.8464]
[1723555080204,6.8445,146.11,146.07,6.8458]
[1723555080377,34.1875,146.26,146.07,6.8458]
[1723555080378,21.9555,146.17,146.09,0.12549]
[1723555080608,6.5543,146.17,146.12,0.12549]
[1723555080786,66.573513,146.21,146.14,6.8426]
[1723555080787,61.5816,146.21,146.14,6.8426]
[1723555080970,2.741544,146.18,146.14,6.8426]
[1723555081585,2.741544,146.18,146.15,17.1052]
[1723555081804,6.5543,146.21,146.16,45.12549]
[1723555082110,31.49,146.24,146.18,6.8405]
[1723555082299,48.5854,146.24,146.16,45.0]
[1723555082509,6.8403,146.2,146.15,51.96759]
[1723555082691,6.8394,146.22,146.17,0.12549]
[1723555082885,31.49,146.24,146.18,6.8404]
[1723555082886,6.8388,146.23,146.18,6.8404]
[1723555083089,6.839,146.22,146.17,6.96669]
[1723555083406,6.8386,146.23,146.18,45.0]
[1723555083622,27.407475,146.31,146.28,6.8361]
[1723555083915,6.8358,146.29,146.24,6.8379]
[1723555084121,6.8353,146.3,146.25,45.0]
[1723555084279,6.835,146.31,146.26,6.8367]
[1723555084601,21.8585,146.33,146.29,6.8357]
[1723555084776,13.4518,146.33,146.28,6.836]
[1723555085115,6.8344,146.32,146.29,45.0]
[1723555085420,6.8344,146.32,146.26,17.21729]
[1723555085421,6.8353,146.3,146.28,45.0]
[1723555085702,6.8353,146.3,146.27,45.0]
[1723555085900,13.4519,146.33,146.28,6.836]
[1723555086234,7.6521459,146.34,146.29,45.0]
[1723555086382,7.6521459,146.34,146.29,51.96109]
[1723555086708,0.8187459,146.34,146.3,0.12549]
[1723555086903,0.8187459,146.34,146.3,17.46357]
[1723555087104,0.8187459,146.34,146.31,45.0]
[1723555087290,0.8187459,146.34,146.32,17.46157]
[1723555087497,6.8339,146.33,146.31,45.0]
[1723555087809,6.8343,146.32,146.28,6.836]
[1723555088118,0.8187459,146.34,146.3,0.12549]
[1723555088407,0.8187459,146.34,146.3,6.8348]
[1723555088603,0.8187459,146.34,146.31,45.0]
[1723555088914,0.8187459,146.34,146.32,6.8343]
[1723555089207,0.8187459,146.34,146.33,52.08478]
[1723555089411,0.8187459,146.34,146.33,52.21027]
[1723555089620,0.8187459,146.34,146.33,52.33576]
[1723555090285,0.8187459,146.34,146.33,125.82506]
[1723555090483,6.0947,146.44,146.33,125.82506]
[1723555090484,12.9235,146.44,146.39,17.0776]
[1723555090801,6.0947,146.44,146.4,45.0]
[1723555091108,6.0947,146.44,146.37,0.12549]
[1723555091306,6.0947,146.44,146.37,52.20797]
[1723555091307,6.83,146.42,146.37,52.20797]
[1723555091604,6.8283,146.45,146.4,6.8305]
[1723555091908,16.4327,146.47,146.4,17.0756]
[1723555092122,6.8292,146.43,146.38,6.95689]
[1723555092318,56.39,146.46,146.39,45.0]
[1723555092522,6.8293,146.43,146.39,45.0]
[1723555092813,6.8293,146.43,146.39,51.8309]
[1723555093303,16.4327,146.47,146.4,0.12549]
[1723555093506,16.4327,146.47,146.4,0.50196]
[1723555093694,6.828,146.46,146.42,6.8296]
[1723555093890,6.8293,146.43,146.39,51.8309]
[1723555094080,39.32,146.47,146.39,51.8309]
[1723555094081,39.32,146.47,146.39,45.0]
[1723555094415,6.8272,146.48,146.4,0.50196]
[1723555094646,6.8272,146.48,146.43,6.8291]
[1723555094794,6.9062459,146.49,146.44,45.0]
[1723555094795,6.8274,146.47,146.44,45.0]
[1723555095111,0.8187459,146.49,146.45,0.12549]
[1723555095308,0.8187459,146.49,146.46,23.8962]
[1723555095511,0.8187459,146.49,146.45,7.07898]
[1723555095675,0.8187459,146.49,146.46,45.0]
[1723555096083,0.8187459,146.49,146.44,0.12549]
[1723555096280,0.8187459,146.49,146.44,45.37647]
[1723555096590,0.8187459,146.49,146.46,6.95309]
[1723555096908,0.8187459,146.49,146.47,45.0]
[1723555097129,6.8268,146.48,146.44,0.25098]
[1723555097309,40.1387459,146.49,146.43,45.0]
[1723555097487,41.84575317,146.49,146.43,45.0]
[1723555097811,41.84575317,146.49,146.37,89.5531]
[1723555097812,39.32,146.47,146.39,17.0769]
[1723555098015,39.32,146.45,146.36,17.0806]
[1723555098216,6.8318,146.38,146.34,6.8333]
[1723555098697,6.8306,146.4,146.35,6.8325]
[1723555098898,6.8301,146.41,146.37,6.8319]
[1723555099108,6.8299,146.42,146.37,6.8319]
[1723555099410,6.8302,146.41,146.37,6.8319]
[1723555099593,26.3853,146.44,146.32,17.0856]
[1723555099594,6.8319,146.38,146.32,17.0856]
[1723555099791,6.8319,146.38,146.33,6.8337]
[1723555100299,6.8307,146.4,146.35,6.8326]
[1723555100487,39.32,146.41,146.36,6.8324]
[1723555100998,6.8307,146.4,146.35,6.8327]
[1723555101303,39.32,146.41,146.35,6.8327]
[1723555101488,6.8311,146.39,146.35,6.8327]
[1723555101903,26.3853,146.44,146.39,6.8307]
[1723555102106,28.09299502,146.44,146.37,6.8316]
[1723555102303,6.8293,146.43,146.38,45.0]
[1723555102505,33.2143,146.44,146.39,6.8306]
[1723555102882,26.3853,146.44,146.4,51.8305]
[1723555103085,6.8279,146.46,146.41,6.8298]
[1723555103434,6.8284,146.45,146.4,51.8305]
[1723555103586,6.8284,146.45,146.41,6.83]
[1723555103798,6.8284,146.45,146.42,45.0]
[1723555104281,6.8275,146.47,146.42,51.8293]
[1723555104486,6.8272,146.48,146.43,0.12549]
[1723555104705,0.8187459,146.49,146.43,24.15258]
[1723555104910,6.8273,146.47,146.43,24.15258]
[1723555105301,6.8273,146.47,146.44,45.0]
[1723555105611,6.8269,146.48,146.44,51.8286]
[1723555105813,7.6452459,146.49,146.45,6.8282]
[1723555106012,7.6452459,146.49,146.46,45.0]
[1723555106324,6.8274,146.47,146.43,17.32358]
[1723555106608,0.8187459,146.49,146.43,17.32358]
[1723555106609,6.8278,146.46,146.44,45.0]
[1723555106817,6.8274,146.47,146.43,45.25098]
[1723555107529,0.8187459,146.49,146.43,45.25098]
[1723555107690,7.6454459,146.49,146.44,6.8286]
[1723555107889,7.6454459,146.49,146.45,45.0]
[1723555108103,0.8187459,146.49,146.46,6.8277]
[1723555108331,0.8187459,146.49,146.47,45.0]
[1723555108619,0.8187459,146.49,146.47,51.8273]
[1723555109115,0.8187459,146.49,146.47,45.0]
[1723555109420,7.6452459,146.49,146.44,6.8284]
[1723555109717,7.6452459,146.49,146.45,45.0]
[1723555109919,7.6452459,146.49,146.45,51.8282]
[1723555110107,6.8269,146.48,146.45,45.0]
[1723555110313,7.6452459,146.49,146.45,45.0]
[1723555110509,0.8187459,146.49,146.45,45.0]
[1723555110834,0.8187459,146.49,146.44,45.0]
[1723555110835,6.8274,146.47,146.44,45.0]
[1723555111033,39.32,146.48,146.4,17.0756]
[1723555111216,56.3899,146.46,146.37,17.0791]
[1723555111612,56.3923,146.44,146.36,6.8323]
[1723555111810,39.32,146.42,146.35,6.8326]
[1723555112015,6.8314,146.39,146.34,23.9158]
[1723555112216,6.8323,146.37,146.31,51.2595]
[1723555112441,6.8323,146.37,146.33,6.8336]
[1723555112635,6.8326,146.36,146.32,6.8341]
[1723555112836,6.8329,146.35,146.31,23.9209]
[1723555113224,39.32,146.38,146.28,6.2532]
[1723555113415,39.32,146.4,146.28,6.2532]
[1723555113740,6.8299,146.42,146.37,6.8318]
[1723555113941,20.0,146.41,146.37,6.8318]
[1723555114521,6.63,146.43,146.38,6.8312]
[1723555114829,13.4596,146.43,146.38,6.8312]
[1723555115143,6.8288,146.44,146.4,6.8304]
[1723555115343,6.8288,146.44,146.39,52.66510288]
[1723555115506,6.8306,146.4,146.36,6.8323]
[1723555115706,6.8306,146.4,146.37,45.0]
[1723555116142,6.8311,146.39,146.37,45.0]
[1723555116353,39.32,146.42,146.32,17.0855]
[1723555116522,39.32,146.4,146.27,39.32]
[1723555116715,6.8325,146.36,146.32,6.8342]
[1723555117217,45.7066,146.38,146.25,73.5069]
[1723555117435,45.7066,146.38,146.25,34.1869]
[1723555117623,6.8326,146.36,146.25,34.1869]
[1723555117820,45.7066,146.38,146.3,17.0876]
[1723555118022,6.8328,146.36,146.31,6.8346]
[1723555118623,6.8321,146.37,146.32,6.8342]
[1723555118825,6.8326,146.36,146.31,6.8347]
[1723555119242,6.8326,146.36,146.32,45.0]
[1723555119439,6.8321,146.37,146.32,51.8339]